bitfinex/quotes_BTCUSD_20250714
["timestamp","ask_amount","ask_price","bid_price","bid_amount"]
[1752464857451,0.08764993,120790.0,120780.0,0.39064]
[1752464857666,0.7717,120780.0,120720.0,0.00315]
[1752464857891,0.08542993,120760.0,120730.0,0.19228]
[1752464858339,0.08542993,120750.0,120720.0,0.024824]
[1752464858621,0.4,120740.0,120730.0,0.19228]
[1752464858811,0.48542993,120740.0,120730.0,0.19228]
[1752464861210,0.48542993,120740.0,120720.0,0.00315]
[1752464861401,0.4,120740.0,120730.0,0.19228]
[1752464861637,0.48542993,120740.0,120720.0,0.00315]
[1752464861845,0.08542993,120730.0,120720.0,0.00315]
[1752464862053,0.08542993,120730.0,120720.0,0.19543]
[1752464862605,0.08542993,120730.0,120720.0,0.40383184]
[1752464863023,0.08542993,120730.0,120720.0,0.55379147]
[1752464863241,0.08542993,120730.0,120720.0,0.36151147]
[1752464863456,0.06606929,120780.0,120720.0,0.61639147]
[1752464863679,0.09792452,120770.0,120760.0,0.35836147]
[1752464863889,0.48542993,120770.0,120760.0,0.55064147]
[1752464864098,0.82542993,120770.0,120760.0,0.19228]
[1752464864508,0.42542993,120770.0,120740.0,0.38633147]
[1752464864730,0.42542993,120770.0,120750.0,0.19228]
[1752464864946,0.82542993,120770.0,120740.0,0.36151147]
[1752464865150,0.82542993,120770.0,120750.0,0.19228]
[1752464865363,0.83749954,120770.0,120760.0,0.19228]
[1752464865840,0.83749954,120770.0,120760.0,0.19224]
[1752464866320,0.83749954,120770.0,120750.0,0.35836147]
[1752464866544,0.83749954,120770.0,120760.0,0.19224]
[1752464867437,0.83749954,120770.0,120730.0,0.02482]
[1752464867688,0.08542993,120760.0,120740.0,0.00315]
[1752464867858,0.08542993,120760.0,120750.0,0.1922]
[1752464868288,0.08542993,120760.0,120750.0,0.00315]
[1752464868477,0.08542993,120760.0,120750.0,0.55371147]
[1752464868680,0.01206961,120770.0,120750.0,0.55371147]
[1752464868980,0.08542993,120760.0,120740.0,0.00315]
[1752464869211,0.08542993,120760.0,120730.0,0.024822]
[1752464869416,0.08542993,120760.0,120740.0,0.1922]
[1752464869569,0.08542993,120760.0,120750.0,0.19216]
[1752464869784,0.08542993,120760.0,120730.0,0.38633347]
[1752464870008,0.08542993,120760.0,120740.0,0.19216]
[1752464870212,0.08542993,120760.0,120750.0,0.19216]
[1752464870569,0.08542993,120760.0,120730.0,0.024822]
[1752464870772,0.15471922,120760.0,120740.0,0.19216]
[1752464871239,0.08542993,120760.0,120730.0,0.38318347]
[1752464871538,0.4,120750.0,120740.0,0.19212]
[1752464871753,0.48542993,120750.0,120740.0,0.19212]
[1752464872563,0.82864993,120750.0,120740.0,0.19212]
[1752464873576,0.82864993,120750.0,120710.0,0.55983147]
[1752464873777,0.08542993,120740.0,120710.0,0.55983147]
[1752464873914,0.42542993,120740.0,120710.0,0.19832]
[1752464874125,0.42542993,120740.0,120720.0,0.19208]
[1752464874126,0.42864993,120740.0,120720.0,0.19208]
[1752464874336,0.08542993,120730.0,120710.0,0.19832]
[1752464875128,0.08542993,120730.0,120720.0,0.19204]
[1752464875599,0.08542993,120730.0,120710.0,0.55983147]
[1752464875766,0.08542993,120730.0,120720.0,0.19204]
[1752464876997,0.08542993,120730.0,120720.0,0.192]
[1752464877762,0.52601922,120730.0,120720.0,0.192]
[1752464877968,0.01454085,120720.0,120710.0,0.19832]
[1752464878176,0.15110394,120720.0,120710.0,0.19832]
[1752464878482,0.01454085,120700.0,120690.0,0.0004]
[1752464878717,0.08542993,120700.0,120690.0,0.19236]
[1752464878873,0.08542993,120700.0,120690.0,0.36191147]
[1752464879072,0.08442993,120700.0,120690.0,0.19232]
[1752464879317,0.08764993,120700.0,120690.0,0.19232]
[1752464879514,0.34,120690.0,120670.0,0.19844]
[1752464879725,0.42542993,120680.0,120670.0,0.19844]
[1752464879866,0.42542993,120680.0,120670.0,0.39036]
[1752464880286,0.42542993,120680.0,120670.0,0.19844]
[1752464880508,0.08542993,120680.0,120670.0,0.55995147]
[1752464880726,0.08542993,120680.0,120670.0,0.19844]
[1752464880932,0.08542993,120680.0,120670.0,0.39036]
[1752464881387,0.08542993,120680.0,120670.0,0.19844]
[1752464881563,0.09713728,120680.0,120670.0,0.39032]
[1752464881771,0.09713728,120680.0,120670.0,0.19844]
[1752464881976,0.09713728,120680.0,120670.0,0.55981147]
[1752464881977,0.08542993,120680.0,120670.0,0.55981147]
[1752464882181,0.34309,120730.0,120670.0,0.75165147]
[1752464882388,0.08542993,120710.0,120690.0,0.35836147]
[1752464882591,0.08542993,120710.0,120680.0,0.00301]
[1752464882803,0.08542993,120710.0,120690.0,0.19184]
[1752464883008,0.08851993,120710.0,120690.0,0.19184]
[1752464883228,0.15149922,120700.0,120670.0,0.19844]
[1752464883429,0.42851993,120690.0,120670.0,0.19844]
[1752464883642,0.08442993,120680.0,120670.0,0.19844]
[1752464884275,0.08442993,120680.0,120670.0,0.20145]
[1752464884491,0.08442993,120680.0,120670.0,0.55981147]
[1752464884921,0.08442993,120680.0,120670.0,0.39321]
[1752464886400,0.08442993,120680.0,120670.0,0.39317]
[1752464887930,0.08442993,120680.0,120670.0,0.20145]
[1752464888080,0.08442993,120680.0,120670.0,0.39313]
[1752464888431,0.08442993,120680.0,120670.0,0.20145]
[1752464888643,0.08442993,120680.0,120670.0,0.39309]
[1752464888851,0.08442993,120680.0,120670.0,0.55981147]
[1752464889054,0.08442993,120680.0,120670.0,0.75145147]
[1752464889174,0.08442993,120680.0,120670.0,0.78305147]
[1752464889386,0.08442993,120680.0,120670.0,0.59141147]
[1752464889587,0.08442993,120680.0,120670.0,0.78301147]
[1752464890399,0.08442993,120680.0,120670.0,0.20145]
[1752464890598,0.08442993,120680.0,120670.0,0.39305]
[1752464890805,0.46606929,120700.0,120670.0,0.55981147]
[1752464891008,0.48542993,120700.0,120690.0,0.35836147]
[1752464891211,0.08542993,120700.0,120690.0,0.35836147]
[1752464891388,0.08542993,120700.0,120690.0,0.36137147]
[1752464891745,0.08542993,120700.0,120690.0,0.55289147]
[1752464891950,0.08542993,120700.0,120690.0,0.19453]
[1752464892781,0.08542993,120700.0,120690.0,0.36137147]
[1752464892984,0.08542993,120700.0,120690.0,0.55281147]
[1752464893360,0.08542993,120700.0,120690.0,0.36137147]
[1752464893561,0.08542993,120700.0,120690.0,0.55277147]
[1752464894156,0.01139112,120730.0,120690.0,0.42387147]
[1752464894366,0.08542993,120720.0,120700.0,0.55273147]
[1752464894566,0.08542993,120720.0,120710.0,0.36137147]
[1752464894765,0.08542993,120720.0,120710.0,0.00301]
[1752464895080,0.01166506,120730.0,120710.0,0.42594254]
[1752464895313,0.15149922,120720.0,120710.0,0.00301]
[1752464895516,0.15149922,120720.0,120710.0,0.19433]
[1752464896341,0.15149922,120720.0,120710.0,0.00301]
[1752464897339,0.15149922,120720.0,120690.0,0.0123878]
[1752464897546,0.15149922,120720.0,120700.0,0.1912]
[1752464897742,0.15149922,120720.0,120700.0,0.2005778]
[1752464897946,0.08542993,120720.0,120710.0,0.19417]
[1752464898136,0.08542993,120720.0,120710.0,0.19413]
[1752464898799,0.08542993,120720.0,120710.0,0.01240124]
[1752464898956,0.01145803,120730.0,120710.0,0.58415147]
[1752464899135,0.08542993,120730.0,120720.0,0.36137147]
[1752464899338,0.08542993,120730.0,120720.0,0.56184271]
[1752464899554,0.08542993,120730.0,120720.0,0.37076271]
[1752464899780,0.08542993,120730.0,120720.0,0.56180271]
[1752464901146,0.09708188,120730.0,120720.0,0.56180271]
[1752464902144,0.09708188,120730.0,120720.0,0.37076271]
[1752464902349,0.09708188,120730.0,120720.0,0.01240124]
[1752464902582,0.09708188,120730.0,120720.0,0.20328124]
[1752464903898,0.09708188,120730.0,120720.0,0.20324124]
[1752464904086,0.09708188,120730.0,120720.0,0.01240124]
[1752464904343,0.09708188,120730.0,120720.0,0.20316124]
[1752464904783,0.09708188,120730.0,120720.0,0.56152271]
[1752464905201,0.09708188,120730.0,120720.0,0.56153367]
[1752464905411,0.09708188,120730.0,120720.0,0.2031722]
[1752464905622,0.09708188,120730.0,120720.0,0.0094022]
[1752464906126,0.44017188,120730.0,120720.0,0.2000422]
[1752464906349,0.44017188,120730.0,120720.0,0.2078822]
[1752464906570,0.44017188,120730.0,120720.0,0.3984822]
[1752464907068,0.43708188,120730.0,120720.0,0.3984822]
[1752464907289,0.09708188,120730.0,120720.0,0.2078822]
[1752464907503,0.09708188,120730.0,120720.0,0.3984422]
[1752464908170,0.09708188,120730.0,120720.0,0.75977367]
[1752464908392,0.09708188,120730.0,120720.0,0.76011173]
[1752464908611,0.09708188,120730.0,120720.0,0.75037147]
[1752464908833,0.09708188,120730.0,120720.0,0.21123005]
[1752464909051,0.09708188,120730.0,120720.0,0.39866005]
[1752464909509,0.3712,120720.0,120690.0,0.19848]
[1752464909747,0.89560154,120700.0,120690.0,0.19848]
[1752464909959,0.92850154,120700.0,120660.0,0.0004]
[1752464910170,0.08542993,120680.0,120660.0,0.0004]
[1752464910383,0.08542993,120680.0,120670.0,0.1904]
[1752464910767,0.08542993,120680.0,120670.0,0.19036]
[1752464911011,0.4,120670.0,120660.0,0.0004]
[1752464911225,0.48542993,120670.0,120650.0,0.19973028]
[1752464911433,0.4,120670.0,120660.0,0.19032]
[1752464911712,0.48542993,120670.0,120660.0,0.19032]
[1752464912137,0.48542993,120670.0,120650.0,0.19848]
[1752464912351,0.08542993,120660.0,120650.0,0.19848]
[1752464912563,0.08866993,120660.0,120640.0,0.19852]
[1752464912777,0.42866993,120660.0,120640.0,0.19852]
[1752464913012,0.08866993,120650.0,120630.0,0.19892]
[1752464913218,0.08866993,120650.0,120640.0,0.1902]
[1752464913650,0.42866993,120650.0,120630.0,0.19892]
[1752464914080,0.42866993,120650.0,120620.0,0.0004]
[1752464914081,0.08542993,120640.0,120620.0,0.0004]
[1752464914319,0.85310069,120640.0,120620.0,0.0004]
[1752464914542,0.85310069,120640.0,120610.0,0.0004]
[1752464914543,0.08542993,120630.0,120610.0,0.0004]
[1752464914748,0.08542993,120630.0,120620.0,0.19012]
[1752464915844,0.08866993,120630.0,120620.0,0.19008]
[1752464916060,0.42866993,120630.0,120620.0,0.19008]
[1752464916272,0.42866993,120630.0,120610.0,0.0004]
[1752464916927,0.08542993,120630.0,120610.0,0.00334]
[1752464917139,0.03544,120670.0,120620.0,0.36130147]
[1752464917357,0.08542993,120650.0,120610.0,0.0004]
[1752464917577,0.08542993,120630.0,120610.0,0.0004]
[1752464918004,0.08542993,120630.0,120620.0,0.18992]
[1752464918284,0.08542993,120630.0,120610.0,0.0004]
[1752464918495,0.08542993,120630.0,120620.0,0.18988]
[1752464919763,0.4,120620.0,120610.0,0.0004]
[1752464919944,0.48542993,120620.0,120610.0,0.1902]
[1752464920185,0.48542993,120620.0,120610.0,0.19314]
[1752464920601,0.4969959,120620.0,120610.0,0.19314]
[1752464920841,0.01156597,120620.0,120610.0,0.58402147]
[1752464921063,0.06930929,120660.0,120610.0,0.39430147]
[1752464921273,0.06606929,120640.0,120610.0,0.0004]
[1752464921486,0.08542993,120630.0,120610.0,0.0004]
[1752464921692,0.08542993,120630.0,120620.0,0.18968]
[1752464922234,0.08542993,120630.0,120620.0,0.00294]
[1752464922434,0.08542993,120630.0,120620.0,0.19258]
[1752464923266,0.08542993,120630.0,120610.0,0.0004]
[1752464923859,0.08542993,120630.0,120620.0,0.18956]
[1752464924355,0.08542993,120630.0,120610.0,0.36170147]
[1752464924603,0.08542993,120630.0,120610.0,0.0004]
[1752464924604,0.08866993,120630.0,120610.0,0.0004]
[1752464925010,0.08866993,120630.0,120620.0,0.18948]
[1752464925580,0.08542993,120630.0,120620.0,0.18948]
[1752464926968,0.08866993,120630.0,120610.0,0.0004]
[1752464927184,0.49473922,120620.0,120610.0,0.0004]
[1752464927396,0.34,120610.0,120600.0,0.19856]
[1752464927603,0.42866993,120610.0,120600.0,0.19856]
[1752464927843,0.42542993,120610.0,120600.0,0.19856]
[1752464928019,0.08542993,120610.0,120600.0,0.19856]
[1752464928643,0.08542993,120610.0,120600.0,0.38776]
[1752464929423,0.08766993,120610.0,120590.0,0.19864]
[1752464929706,0.15049922,120610.0,120590.0,0.19864]
[1752464929856,0.15373922,120610.0,120590.0,0.19864]
[1752464930084,0.4,120600.0,120590.0,0.19864]
[1752464930287,0.48866993,120600.0,120580.0,0.19864]
[1752464930611,0.08542993,120590.0,120580.0,0.19864]
[1752464930814,0.08542993,120590.0,120580.0,0.38768]
[1752464932847,0.08542993,120590.0,120580.0,0.19864]
[1752464933073,0.08542993,120590.0,120580.0,0.3876]
[1752464934070,0.08442993,120590.0,120580.0,0.20158]
[1752464934288,0.15049922,120590.0,120580.0,0.19864]
[1752464934509,0.49373922,120590.0,120580.0,0.19864]
[1752464934684,0.34,120580.0,120560.0,0.19864]
[1752464934931,0.08542993,120570.0,120560.0,0.19864]
[1752464935143,0.05852019,120570.0,120560.0,0.38736]
[1752464935351,0.125,120560.0,120550.0,0.19864]
[1752464935556,0.21042993,120560.0,120550.0,0.19864]
[1752464936595,0.21042993,120560.0,120550.0,0.38728]
[1752464936809,0.21366993,120560.0,120550.0,0.19864]
[1752464937033,0.21366993,120560.0,120490.0,0.19868]
[1752464937034,0.125,120540.0,120490.0,0.19868]
[1752464937251,0.075,120520.0,120490.0,0.19868]
[1752464937465,0.05,120520.0,120510.0,0.35836147]
[1752464937670,0.05,120530.0,120510.0,0.19146]
[1752464937884,0.34,120550.0,120510.0,0.35836147]
[1752464938100,0.08542993,120530.0,120520.0,0.36130147]
[1752464938317,0.08542993,120530.0,120520.0,0.19138]
[1752464938975,0.08442993,120530.0,120520.0,0.19138]
[1752464939412,0.22549922,120530.0,120520.0,0.18844]
[1752464939632,0.15942993,120530.0,120520.0,0.00294]
[1752464939878,0.15942993,120530.0,120520.0,0.1913]
[1752464940125,0.06606929,120550.0,120520.0,0.40538803]
[1752464940360,0.0856647,120570.0,120540.0,0.40244803]
[1752464940599,0.0106647,120570.0,120550.0,0.40538803]
[1752464940831,0.0106647,120570.0,120530.0,0.30574993]
[1752464940832,0.11606929,120590.0,120560.0,0.59366803]
[1752464941059,0.075,120570.0,120560.0,0.19118]
[1752464941294,0.06606929,120570.0,120560.0,0.19118]
[1752464941951,0.06606929,120590.0,120560.0,0.19118]
[1752464942165,0.67649922,120590.0,120560.0,0.37926]
[1752464942398,0.06606929,120570.0,120560.0,0.00294]
[1752464942628,0.62894725,120570.0,120540.0,0.00298]
[1752464942850,0.62894725,120570.0,120520.0,0.00298]
[1752464942851,0.14106929,120550.0,120520.0,0.00298]
[1752464943072,0.16042993,120540.0,120520.0,0.00298]
[1752464943289,0.21042993,120540.0,120520.0,0.00298]
[1752464943498,0.05,120550.0,120520.0,0.40244803]
[1752464943754,0.20942993,120550.0,120530.0,0.19011417]
[1752464943973,0.01112233,120580.0,120530.0,0.18804]
[1752464943974,0.049,120560.0,120530.0,0.18804]
[1752464944195,0.08542993,120550.0,120540.0,0.188]
[1752464944610,0.08542993,120550.0,120530.0,0.00298]
[1752464944822,0.08542993,120550.0,120540.0,0.18792]
[1752464945046,0.11506929,120570.0,120540.0,0.00298]
[1752464945282,0.08542993,120560.0,120540.0,0.00298]
[1752464945499,0.08542993,120560.0,120550.0,0.00298]
[1752464945715,0.16042993,120560.0,120550.0,0.19082]
[1752464945934,0.08542993,120560.0,120550.0,0.19082]
[1752464946141,0.08542993,120560.0,120510.0,0.0314]
[1752464946142,0.40013864,120580.0,120530.0,0.46534803]
[1752464946361,0.075,120570.0,120530.0,0.14832993]
[1752464946579,0.075,120570.0,120540.0,0.34040393]
[1752464946796,0.075,120570.0,120540.0,0.15052993]
[1752464947008,0.075,120570.0,120550.0,0.18776]
[1752464947220,0.075,120570.0,120540.0,0.15052993]
[1752464947447,0.16042993,120580.0,120550.0,0.18772]
[1752464947693,0.22649922,120570.0,120520.0,0.3726]
[1752464947910,0.22649922,120570.0,120540.0,0.34]
[1752464948125,0.15149922,120570.0,120550.0,0.18764]
[1752464948340,0.22649922,120570.0,120550.0,0.18764]
[1752464948759,0.08542993,120560.0,120540.0,0.34]
[1752464948922,0.13442993,120560.0,120550.0,0.18756]
[1752464949326,0.53988796,120560.0,120520.0,1.10332]
[1752464949492,0.11807929,120550.0,120520.0,1.10332]
[1752464949694,0.13442993,120540.0,120530.0,0.18748]
[1752464949918,0.20942993,120540.0,120530.0,0.18748]
[1752464950138,0.20942993,120540.0,120530.0,0.18744]
[1752464950761,0.20942993,120540.0,120520.0,1.10332]
[1752464951017,0.075,120540.0,120530.0,0.18943417]
[1752464951266,0.075,120540.0,120530.0,0.18736]
[1752464951482,0.16042993,120540.0,120520.0,1.10332]
[1752464951690,0.075,120530.0,120520.0,1.10332]
[1752464952079,0.19006929,120550.0,120520.0,1.10463]
[1752464952279,0.075,120540.0,120530.0,0.18935417]
[1752464952491,0.20049922,120550.0,120520.0,1.10463]
[1752464952634,0.20049922,120550.0,120530.0,0.18931417]
[1752464952831,0.20049922,120550.0,120530.0,0.18724]
[1752464953067,0.19949922,120550.0,120530.0,0.18724]
[1752464953272,0.27449922,120550.0,120520.0,1.10463]
[1752464953506,0.075,120540.0,120530.0,0.18931417]
[1752464953708,0.27449922,120550.0,120530.0,0.18724]
[1752464953914,0.13442993,120550.0,120530.0,0.18724]
[1752464954068,0.16042993,120550.0,120530.0,0.18724]
[1752464954459,0.075,120540.0,120530.0,0.18724]
[1752464954768,0.075,120540.0,120520.0,1.10332]
[1752464955006,0.075,120530.0,120520.0,1.10332]
[1752464955183,0.075,120530.0,120520.0,1.29032]
[1752464955403,0.075,120540.0,120520.0,1.29032]
[1752464955605,0.075,120530.0,120520.0,1.39902]
[1752464955871,0.124,120540.0,120520.0,1.39902]
[1752464955996,0.21243993,120540.0,120520.0,1.58594]
[1752464956210,0.075,120530.0,120520.0,1.39902]
[1752464956392,0.075,120530.0,120520.0,1.58594]
[1752464956831,0.08542993,120540.0,120520.0,1.39902]
[1752464957031,0.075,120530.0,120520.0,1.39902]
[1752464957371,0.51506929,120550.0,120520.0,1.40033]
[1752464957578,0.60049922,120550.0,120530.0,0.00207417]
[1752464957797,0.67549922,120550.0,120540.0,0.1868]
[1752464958156,0.075,120540.0,120520.0,1.40033]
[1752464958385,0.075,120540.0,120530.0,0.18672]
[1752464958593,0.68078796,120540.0,120520.0,1.39902]
[1752464958805,0.22649922,120530.0,120520.0,1.10332]
[1752464959038,0.27549922,120530.0,120520.0,1.28996]
[1752464959245,0.27850922,120530.0,120520.0,1.10332]
[1752464959473,0.27850922,120530.0,120520.0,1.28992]
[1752464959686,0.27850922,120530.0,120520.0,1.10332]
[1752464959888,0.27850922,120530.0,120520.0,1.28992]
[1752464960519,0.45201,120550.0,120520.0,1.39902]
[1752464960744,0.16042993,120540.0,120530.0,0.00207417]
[1752464960950,0.16042993,120540.0,120530.0,0.18648]
[1752464961137,0.075,120540.0,120520.0,1.39902]
[1752464961396,0.075,120540.0,120530.0,0.00207417]
[1752464961617,0.39201,120560.0,120530.0,0.00207417]
[1752464961832,0.16042993,120560.0,120530.0,0.00338417]
[1752464962037,0.16042993,120560.0,120540.0,0.18636]
[1752464962246,0.16042993,120560.0,120550.0,0.38512]
[1752464962464,0.16042993,120560.0,120550.0,0.19876]
[1752464962676,0.16042993,120560.0,120550.0,0.38508]
[1752464963420,0.08542993,120560.0,120550.0,0.38508]
[1752464963612,0.16042993,120560.0,120550.0,0.38508]
[1752464964861,0.16042993,120560.0,120550.0,0.19876]
[1752464965062,0.16042993,120560.0,120550.0,0.38484]
[1752464965063,0.21243993,120560.0,120550.0,0.38484]
[1752464965269,0.21243993,120560.0,120550.0,0.19876]
[1752464965469,0.16042993,120560.0,120550.0,0.3848]
[1752464965678,0.15942993,120560.0,120550.0,0.19876]
[1752464965903,0.21143993,120560.0,120550.0,0.19876]
[1752464966305,0.21143993,120560.0,120550.0,0.38472]
[1752464966626,0.15942993,120560.0,120550.0,0.19876]
[1752464966832,0.15942993,120560.0,120550.0,0.38468]
[1752464967332,0.075,120560.0,120550.0,0.19876]
[1752464967567,0.475,120570.0,120550.0,0.19876]
[1752464967770,0.124,120580.0,120560.0,0.1858]
[1752464967881,0.20942993,120580.0,120550.0,0.49577]
[1752464968090,0.08542993,120580.0,120560.0,0.18576]
[1752464968304,0.16042993,120580.0,120570.0,0.18572]
[1752464968745,0.16042993,120580.0,120550.0,0.49577]
[1752464969243,0.16042993,120580.0,120560.0,0.18568]
[1752464970094,0.16042993,120580.0,120550.0,0.49577]
[1752464970305,0.56588796,120580.0,120560.0,0.18564]
[1752464970708,0.16343993,120580.0,120560.0,0.18564]
[1752464971117,0.16042993,120580.0,120550.0,0.49446]
[1752464971348,0.08542993,120580.0,120560.0,0.18552]
[1752464971558,0.16042993,120580.0,120560.0,0.18552]
[1752464971764,0.075,120580.0,120560.0,0.18552]
[1752464971975,0.124,120600.0,120570.0,0.08673993]
[1752464972182,0.05225,120640.0,120580.0,0.82345219]
[1752464972384,0.075,120630.0,120590.0,0.15040307]
[1752464972589,0.075,120620.0,120600.0,0.3706]
[1752464972792,0.21461771,120640.0,120610.0,0.00207279]
[1752464973013,0.10051929,120660.0,120620.0,0.56928]
[1752464973215,0.10051929,120660.0,120630.0,0.00207245]
[1752464973216,0.16042993,120650.0,120630.0,0.00207245]
[1752464973428,0.08542993,120650.0,120640.0,0.19872]
[1752464973634,0.075,120650.0,120640.0,0.19872]
[1752464974274,0.21267993,120650.0,120640.0,0.19872]
[1752464974491,0.67632796,120650.0,120640.0,0.19872]
[1752464974665,0.67632796,120650.0,120640.0,0.38384]
[1752464974908,1.01632796,120650.0,120640.0,0.38384]
[1752464975126,1.01632796,120650.0,120640.0,0.19872]
[1752464975360,0.58267993,120650.0,120640.0,0.19872]
[1752464975593,0.55267993,120650.0,120640.0,0.19872]
[1752464975816,1.01632796,120650.0,120640.0,0.38364]
[1752464976026,1.01632796,120650.0,120640.0,0.3836]
[1752464976244,1.01632796,120650.0,120640.0,0.19872]
[1752464976468,0.61387993,120650.0,120640.0,0.3836]
[1752464976698,1.01632796,120650.0,120640.0,0.19872]
[1752464976909,1.01632796,120650.0,120640.0,0.38356]
[1752464977139,1.01632796,120650.0,120640.0,0.19872]
[1752464977352,0.61387993,120650.0,120640.0,0.38348]
[1752464977574,1.01632796,120650.0,120640.0,0.38348]
[1752464977802,0.50767993,120650.0,120640.0,0.19872]
[1752464978038,0.50767993,120650.0,120640.0,0.3834]
[1752464978039,0.98267993,120650.0,120640.0,0.3834]
[1752464978682,0.075,120630.0,120570.0,0.024845]
[1752464978884,0.124,120610.0,120600.0,0.19868]
[1752464979091,0.20942993,120610.0,120600.0,0.38324]
[1752464979317,0.61512796,120610.0,120600.0,0.38324]
[1752464979533,0.64752796,120610.0,120600.0,0.38324]
[1752464979745,0.58507993,120610.0,120600.0,0.19868]
[1752464979957,0.58507993,120610.0,120600.0,0.38324]
[1752464982680,0.58507993,120610.0,120600.0,0.19868]
[1752464982681,0.16042993,120610.0,120600.0,0.19868]
[1752464982887,0.16042993,120610.0,120600.0,0.38288]
[1752464983103,0.08542993,120610.0,120600.0,0.38288]
[1752464983328,0.05225,120620.0,120600.0,0.38288]
[1752464983536,0.075,120610.0,120600.0,0.38288]
[1752464983755,0.13767993,120620.0,120600.0,0.38288]
[1752464983968,0.075,120610.0,120600.0,0.38288]
[1752464986262,0.21267993,120620.0,120600.0,0.38252]
[1752464986476,0.13442993,120620.0,120600.0,0.19868]
[1752464986858,0.075,120620.0,120610.0,0.40244803]
[1752464987060,0.075,120640.0,120610.0,0.18372]
[1752464987269,0.075,120630.0,120620.0,0.18372]
[1752464987676,0.075,120630.0,120610.0,0.26908245]
[1752464988103,0.075,120630.0,120620.0,0.18364]
[1752464988318,0.56974922,120630.0,120610.0,0.26908245]
[1752464988445,0.075,120610.0,120600.0,0.46776245]
[1752464988632,0.20942993,120610.0,120600.0,0.38224]
[1752464988996,0.61267993,120610.0,120600.0,0.38224]
[1752464989556,0.124,120600.0,120590.0,0.19868]
[1752464989774,0.21267993,120600.0,120590.0,0.19868]
[1752464990067,0.20942993,120600.0,120590.0,0.19868]
[1752464990348,0.16042993,120600.0,120590.0,0.46776245]
[1752464990853,0.16367993,120600.0,120590.0,0.65112245]
[1752464991536,0.21267993,120600.0,120590.0,0.65112245]
[1752464992384,0.21267993,120600.0,120590.0,0.46776245]
[1752464992708,0.21267993,120600.0,120590.0,0.65092245]
[1752464992912,0.124,120590.0,120580.0,0.19868]
[1752464993117,0.21475238,120590.0,120580.0,0.3818]
[1752464993338,0.21267993,120590.0,120580.0,0.3818]
[1752464993732,0.61267993,120590.0,120580.0,0.3818]
[1752464994646,0.56042993,120590.0,120580.0,0.19868]
[1752464994852,0.049,120600.0,120580.0,0.19868]
[1752464995022,0.075,120590.0,120580.0,0.19868]
[1752464995236,0.08542993,120600.0,120580.0,0.38156]
[1752464995437,0.13442993,120600.0,120580.0,0.38156]
[1752464995854,0.075,120590.0,120580.0,0.19868]
[1752464996091,0.075,120590.0,120580.0,0.38148]
[1752464996300,0.075,120590.0,120580.0,0.19868]
[1752464996445,0.075,120590.0,120580.0,0.38148]
[1752464996922,0.20942993,120600.0,120580.0,0.19868]
[1752464997156,0.42542993,120600.0,120580.0,0.38144]
[1752464997383,0.049,120610.0,120590.0,0.18471314]
[1752464997610,0.08542993,120610.0,120600.0,0.18264]
[1752464998047,0.82542993,120610.0,120600.0,0.18264]
[1752464998505,0.06606929,120630.0,120600.0,0.18264]
[1752464998741,0.06606929,120630.0,120580.0,0.66482803]
[1752464998742,0.15149922,120630.0,120580.0,0.66482803]
[1752464998988,0.049,120640.0,120590.0,0.08542993]
[1752464999207,0.20942993,120640.0,120600.0,0.0317]
[1752464999420,0.21267993,120640.0,120600.0,0.34]
[1752464999595,0.21267993,120640.0,120610.0,0.18244]
[1752464999860,0.21267993,120640.0,120600.0,0.34]
[1752465000276,0.21267993,120640.0,120610.0,0.18236]
[1752465000499,0.21267993,120640.0,120620.0,0.18236]
[1752465000888,0.21267993,120640.0,120600.0,0.34]
[1752465001130,0.21237993,120630.0,120610.0,0.18224]
[1752465001337,0.075,120620.0,120580.0,0.63282803]
[1752465001552,0.075,120620.0,120580.0,0.19868]
[1752465001553,0.13737993,120610.0,120580.0,0.19868]
[1752465001759,0.12695,120600.0,120590.0,0.1822]
[1752465001976,0.4,120590.0,120580.0,0.19868]
[1752465002196,0.61237993,120590.0,120580.0,0.19868]
[1752465002412,0.61237993,120590.0,120580.0,0.3808]
[1752465002626,0.61237993,120590.0,120580.0,0.19868]
[1752465002834,0.53442993,120590.0,120580.0,0.19868]
[1752465003042,0.4,120590.0,120580.0,0.19868]
[1752465003251,0.475,120590.0,120580.0,0.38072]
[1752465003694,0.4,120590.0,120580.0,0.38072]
[1752465003902,0.475,120590.0,120580.0,0.38072]
[1752465004129,0.4,120590.0,120580.0,1.04385027]
[1752465004344,0.075,120610.0,120580.0,0.89263027]
[1752465004580,0.075,120610.0,120590.0,0.40452117]
[1752465004796,0.075,120610.0,120600.0,0.18188]
[1752465005845,0.07795,120610.0,120580.0,0.45948224]
[1752465006070,0.075,120590.0,120580.0,0.45948224]
[1752465006280,0.07795,120590.0,120580.0,0.64116224]
[1752465006489,0.00295,120590.0,120580.0,0.64116224]
[1752465006672,0.07795,120590.0,120580.0,0.64116224]
[1752465006926,0.21237993,120590.0,120580.0,0.19868]
[1752465007190,0.68364922,120590.0,120580.0,0.19868]
[1752465007405,1.08609725,120590.0,120580.0,0.19868]
[1752465007624,1.08609725,120590.0,120580.0,0.38024]
[1752465008093,0.61757993,120590.0,120580.0,0.19868]
[1752465008305,0.61757993,120590.0,120580.0,0.3802]
[1752465008306,0.58517993,120590.0,120580.0,0.3802]
[1752465008488,0.58517993,120590.0,120580.0,0.19868]
[1752465008766,0.58517993,120590.0,120580.0,0.38012]
[1752465008978,0.58517993,120590.0,120580.0,0.38008]
[1752465009194,0.55237993,120590.0,120580.0,0.19868]
[1752465009401,0.20942993,120590.0,120580.0,0.19868]
[1752465009617,0.20942993,120590.0,120580.0,0.38004]
[1752465010661,0.13442993,120590.0,120580.0,0.19868]
[1752465010874,0.20942993,120590.0,120580.0,0.37988]
[1752465011365,0.20942993,120590.0,120580.0,0.19868]
[1752465011574,0.20942993,120590.0,120580.0,0.37988]
[1752465011778,0.20942993,120590.0,120580.0,0.3798]
[1752465011990,0.075,120590.0,120580.0,0.19868]
[1752465012423,0.075,120590.0,120580.0,0.37972]
[1752465012628,0.075,120590.0,120580.0,0.19868]
[1752465012859,0.12902245,120610.0,120580.0,0.37972]
[1752465013120,0.13737993,120610.0,120590.0,0.00207314]